[Event "61st Mongolian-ch Open 2023"]
[Site "Khovd"]
[Date "2023.05.29"]
[Round "10.6"]
[White "Amartuvshin, Ganzorig"]
[Black "Bilguun, Sumiya"]
[Result "1-0"]
[ECO "D31"]
[WhiteElo "2407"]
[BlackElo "2474"]
[Annotator "TA"]
[PlyCount "81"]
[EventDate "2023.05.22"]
[EventType "tourn"]
[EventCountry "MGL"]
[SourceTitle "playchess.com"]
[Source "ChessBase"]
[SourceQuality "1"]
[TimeControl "40/5400+30:1800+30"]

{[%evp 16,81,0,0,0,0,0,0,0,0,0,0,0,0,70,47,198,194,241,233,238,241,421,419,398,408,391,387,391,388,393,375,400,362,547,533,615,610,608,601,591,570,666,603,600,531,657,677,670,674,683,625,698,623,1293,1259,1185,1106,29977,29978,29985,29967,29989,29990,29991,29992,29996,29997]} 1. d4 {[%emt 0:00:01]} d5 {[%emt 0:00:06]} 2. c4 {[%emt 0:00:06]} e6 {[%emt 0:00:06]} 3. Nc3 {[%emt 0:00:04]} c6 {[%emt 0:00:04]} 4. e4 {[%emt 0:00:09]} dxe4 {[%emt 0:00:37]} 5. Nxe4 {[%emt 0:00:13]} Bb4+ {[%emt 0:00:13]} 6. Bd2 {[%emt 0:00:06]} Qxd4 {[%emt 0:00:15]} 7. Bxb4 {[%emt 0:00:07]} Qxe4+ {[%emt 0:00:10]} 8. Be2 {[%emt 0:00:07]} Na6 {[%emt 0:09:24]} 9. Ba5 {[%emt 0:00:10][%csl Ga5][%cal Rd1d8]} b6 {[%emt 0:03:48] D31: Queen's Gambit Declined: Semi-Slav without ...Nf6 (+ Marshall Gambit and Noteboom) and Exchange Variation lines without ...Nf6.} (9... Qxg2 $2 10. Qd8#) 10. Qd6 $1 {[%emt 0:01:10] Black must now prevent Bc3.} Bd7 $1 {[%emt 0:20:10]} (10... bxa5 11. Rd1 f6 12. f3 $16) (10... Ne7 $2 11. O-O-O O-O 12. Qxe7 $18) 11. Bc3 {[%emt 0:09:50]} f6 $1 {[%emt 0:08:05] The position is equal.} 12. Rd1 $40 {[%emt 0:17:08][%mdl 128] Against e5. Black needs to defend precisely.} O-O-O {[%emt 0:12:16]} 13. Qa3 $1 {[%emt 0:10:14]} Kb7 {[%emt 0:01:26]} 14. Nf3 {[%emt 0:00:39] Strongly threatening Nd4.} Nh6 {[%emt 0:15:22]} (14... e5 $1 $11) 15. Qe7 {[%emt 0:04:53][%csl LRd7,LRg7] [#] White is more active.} (15. c5 $5 {[%cal Ra3a6]} Nc7 16. Rd4 $11) 15... Kc8 $146 {[%emt 0:01:15]} (15... Nc5 $14 16. Qxg7 Ng4) ({Predecessor:} 15... Nf5 16. Rxd7+ Kc8 17. Nd2 Nxe7 18. Rxd8+ Rxd8 19. Nxe4 {1-0 Hopman,P (2335)-Neuhoff,L (2029) Bad Woerishofen op 38th 2023 (1)}) 16. Qxg7 $18 {[%emt 0:02:30]} Ng4 {[%emt 0:02:29] Black is weak on the dark squares} (16... Nf5 {was called for.} 17. Qxf6 Rhg8) 17. h3 $1 {[%emt 0:05:36]} (17. Bxf6 Rhg8 18. Qe7 Nxf6 19. Qxf6 Rxg2 $11) 17... Rhg8 {[%emt 0:05:15] [#]} 18. Qf7 {[%emt 0:00:20]} Ne5 {[%emt 0:16:27]} (18... Rgf8 19. Qh5 Ne5) 19. Nxe5 {[%emt 0:00:33][%mdl 64] Remove Defender} (19. Qxf6 Nxf3+ 20. Qxf3 Nc5 $16) 19... fxe5 {[%emt 0:00:44] [#]} 20. Rxd7 $1 {[%emt 0:00:25][%mdl 576] Deflection} Nc5 {[%emt 0:00:53]} 21. Rxd8+ {[%emt 0:04:37]} (21. Rxa7 $2 Qb1+) (21. Qxh7 Rxd7 22. Qxe4 (22. Qxg8+ $2 Rd8 $19) 22... Nxe4 $14) 21... Rxd8 {[%emt 0:00:01]} 22. Kf1 {[%emt 0:04:17][%cal Be1f1,Bf1g2,Bg2h2,Bh2g3][%mdl 32]} (22. Qxa7 $2 Qb1+) 22... Qb1+ {[%emt 0:00:42]} 23. Be1 {[%emt 0:00:07]} e4 {[%emt 0:01:17]} 24. g3 {[%emt 0:00:28]} (24. Qxh7 Nd3 25. Bxd3 exd3 $18) 24... Nd3 {[%emt 0:00:34]} (24... Rd7 $142 25. Qf6 Nd3) 25. Qxe6+ {[%emt 0:00:37]} Kc7 {[%emt 0:00:09]} 26. Bxd3 {[%emt 0:00:26]} Qxd3+ {[%emt 0:00:06]} 27. Kg2 {[%emt 0:00:17]} Qf3+ {[%emt 0:00:21] [#]} 28. Kh2 $1 {[%emt 0:00:09]} Rd2 {[%emt 0:01:11]} 29. Qe5+ {[%emt 0:01:33]} (29. Bxd2 $2 Qxf2#) 29... Kb7 {[%emt 0:00:31] ( -> ...Rxf2+)} 30. Qf4 {[%emt 0:03:04]} (30. Bxd2 $2 Qxf2#) 30... Rxb2 {[%emt 0:00:13]} 31. Qxf3 {[%emt 0:00:43]} exf3 {[%emt 0:00:01][%mdl 4096] Endgame KRB-KR} 32. g4 {[%emt 0:00:07][%cal Bg3g4,Bg4g5,Bg5g6][%mdl 32]} Rxa2 {[%emt 0:00:21]} 33. Kg3 {[%emt 0:00:16]} Ra1 {[%emt 0:00:40]} 34. h4 {[%emt 0:00:25]} a5 {[%emt 0:00:13]} 35. g5 {[%emt 0:00:22]} a4 {[%emt 0:00:19]} 36. h5 {[%emt 0:00:13][%cal Og5g6] White threatens g6! and mate.} a3 {[%emt 0:00:07]} 37. g6 {[%emt 0:00:15] White mates.} ({Less strong is} 37. Kxf3 a2 38. g6 Rb1 $18) 37... hxg6 {[%emt 0:00:20]} 38. h6 {[%emt 0:00:14]} (38. Kxf3 gxh5 39. Kg2 Rb1 $15) 38... a2 {[%emt 0:01:37]} 39. h7 {[%emt 0:00:05]} ({Worse is} 39. Kxf3 Rc1 40. h7 a1=Q $17) 39... Rd1 {[%emt 0:00:18]} 40. h8=Q {[%emt 0:00:00]} a1=Q {[%emt 0:00:00]} 41. Rh7+ {[%emt 0:00:17] Black got outplayed after the opening. A cool game by Amartuvshin.   Weighted Error Value: White=0.09 (flawless) /Black=0.54} ({Inferior is} 41. Kxf3 Qxh8 42. Rxh8 Rxe1 $17) 1-0

[Event "61st Mongolian-ch Open 2023"]
[Site "Khovd"]
[Date "2023.05.30"]
[Round "11.1"]
[White "Bulgankhan Ganzorig"]
[Black "Ulziikhishig Khishigbat"]
[Result "1-0"]
[ECO "E28"]
[WhiteElo "2017"]
[BlackElo "1601"]
[Annotator "RC"]
[PlyCount "81"]
[EventDate "2023.05.22"]
[EventType "tourn"]
[EventCountry "MGL"]
[SourceTitle "playchess.com"]
[Source "ChessBase"]
[SourceQuality "1"]
[TimeControl "40/5400+30:1800+30"]

1. d4 {[%emt 0:00:07]} Nf6 {[%emt 0:00:05]} 2. c4 {[%emt 0:00:11]} e6 {[%emt 0:00:05]} 3. Nc3 {[%emt 0:00:10]} Bb4 {[%emt 0:00:04]} 4. a3 {[%emt 0:00:21]} Bxc3+ {[%emt 0:00:07]} 5. bxc3 {[%emt 0:00:02]} d6 {[%emt 0:00:19]} 6. e3 {[%emt 0:00:54]} O-O {[%emt 0:00:08]} 7. Bd3 {[%emt 0:00:03]} b6 {[%emt 0:00:10]} 8. Ne2 {[%emt 0:00:06]} Bb7 {[%emt 0:00:07]} 9. f3 {[%emt 0:00:10]} c5 {[%emt 0:00:04]} 10. e4 {[%emt 0:00:09]} e5 {[%emt 0:00:06]} 11. d5 {[%emt 0:01:59]} Ne8 {[%emt 0:00:18]} 12. O-O {[%emt 0:00:07]} g6 {[%emt 0:00:33]} 13. a4 {[%emt 0:03:03]} Nd7 {[%emt 0:00:50]} 14. a5 {[%emt 0:00:07]} bxa5 {[%emt 0:00:22]} 15. Qa4 {[%emt 0:00:34]} Kg7 {[%emt 0:00:23]} 16. Qxa5 {[%emt 0:00:09]} Qxa5 {[%emt 0:00:08]} 17. Rxa5 {[%emt 0:00:01]} Nb6 {[%emt 0:00:14]} 18. f4 {[%emt 0:00:40]} Nd7 {[%emt 0:03:02]} 19. g3 {[%emt 0:02:26]} Nc7 {[%emt 0:01:44]} 20. Be3 {[%emt 0:00:45]} Rfb8 {[%emt 0:00:48]} 21. Rfa1 {[%emt 0:00:17]} exf4 {[%emt 0:03:00]} 22. gxf4 {[%emt 0:00:49]} Re8 {[%emt 0:00:34]} 23. Rxa7 {[%emt 0:00:30]} Rxa7 {[%emt 0:00:39]} 24. Rxa7 {[%emt 0:00:03]} Rb8 {[%emt 0:00:09]} 25. Bc2 {[%emt 0:00:22]} Ne8 {[%emt 0:00:58]} 26. Ba4 {[%emt 0:01:14]} Nef6 {[%emt 0:00:46]} 27. Ng3 {[%emt 0:01:44]} h5 {[%emt 0:01:16]} 28. e5 {[%emt 0:01:18]} dxe5 {[%emt 0:00:28]} 29. Bxd7 {[%emt 0:00:49]} Nxd7 {[%emt 0:00:11]} 30. fxe5 {[%emt 0:00:18]} Nxe5 {[%emt 0:00:10]} 31. Bf4 {[%emt 0:00:19]} f6 {[%emt 0:00:39]} 32. Bxe5 {[%emt 0:00:12]} fxe5 {[%emt 0:00:08]} 33. Ne4 {[%emt 0:00:02]} Kh6 {[%emt 0:00:10]} 34. h4 {[%emt 0:00:22]} Bc8 {[%emt 0:00:19]} 35. Ng5 {[%emt 0:00:36]} Rb7 {[%emt 0:00:30]} 36. Rxb7 {[%emt 0:00:06]} Bxb7 {[%emt 0:00:01]} 37. d6 {[%emt 0:00:29]} Bc8 {[%emt 0:00:17]} 38. Nf7+ {[%emt 0:00:10]} Kg7 {[%emt 0:00:05]} 39. Nxe5 {[%emt 0:00:05]} Kf6 {[%emt 0:00:06]} 40. d7 {[%emt 0:00:00]} Bxd7 {[%emt 0:00:00]} 41. Nxd7+ {[%emt 0:00:12]} 1-0

[Event "61st Mongolian-ch Open 2023"]
[Site "Khovd"]
[Date "2023.05.30"]
[Round "11.2"]
[White "Amilal Munkhdalai"]
[Black "Erdene, Ganzorig"]
[Result "1-0"]
[ECO "B15"]
[WhiteElo "2141"]
[BlackElo "2278"]
[Annotator "TA"]
[PlyCount "127"]
[EventDate "2023.05.22"]
[EventType "tourn"]
[EventCountry "MGL"]
[SourceTitle "playchess.com"]
[Source "ChessBase"]
[SourceQuality "1"]
[TimeControl "40/5400+30:1800+30"]

{[%evp 17,127,41,43,40,50,41,63,56,96,60,58,50,52,43,66,60,113,34,29,0,0,0,0,13,10,0,18,0,0,-8,-16,-4,0,0,0,0,41,47,41,41,38,41,58,54,58,0,55,0,44,57,69,56,78,65,71,54,55,56,77,39,33,33,36,22,14,0,13,0,0,0,0,0,0,0,0,0,23,12,10,3,8,0,0,0,0,0,8,8,8,8,31,33,35,35,23,33,168,168,168,168,184,185,243,260,233,193,356,306,518,509,489,432]} 1. e4 {[%emt 0:00:01]} c6 {[%emt 0:00:09]} 2. Nc3 {[%emt 0:00:04]} d5 {[%emt 0:00:07]} 3. Nf3 {[%emt 0:00:03]} g6 {[%emt 0:06:57]} 4. h3 {[%emt 0:00:47]} Bg7 {[%emt 0:00:47]} 5. d4 {[%emt 0:00:29]} dxe4 {[%emt 0:01:34]} 6. Nxe4 {[%emt 0:00:11]} Nd7 {[%emt 0:00:18]} 7. Bd3 {[%emt 0:02:41]} Ngf6 {[%emt 0:00:12]} 8. Nxf6+ {[%emt 0:00:43]} Nxf6 {[%emt 0:00:10]} 9. O-O {[%emt 0:00:07]} O-O {[%emt 0:00:13]} 10. Qe2 {[%emt 0:00:44] B15: Caro-Kann: 3 Nc3: 3...g6 and 3...dxe4 4 Nxe4 Nf6 5 Nxf6+ exf6.} Qd6 {[%emt 0:03:31]} 11. Re1 {[%emt 0:03:14]} Nd5 {[%emt 0:00:43]} 12. c4 {[%emt 0:12:50] White is slightly better.} Nb4 {[%emt 0:00:09]} 13. Bb1 {[%emt 0:00:37]} (13. Qxe7 $2 Qxe7 14. Rxe7 Nxd3 $19) 13... c5 {[%emt 0:00:59] [#]} 14. dxc5 $146 {[%emt 0:11:42]} (14. Qxe7 Qxe7 15. Rxe7 cxd4 $11) ({Predecessor:} 14. Bg5 e6 15. a3 Nc6 16. dxc5 Qxc5 17. b4 Nd4 18. Nxd4 Qxg5 19. Nf3 {½-½ Naiditsch,A (2623)-Minasian,A (2586) Moscow Aeroflot op-A 2005 (7)}) 14... Qxc5 {[%emt 0:00:17]} 15. Be3 {[%emt 0:00:05]} (15. Qxe7 Qxe7 16. Rxe7 Rd8 $11) 15... Qh5 {[%emt 0:05:57]} 16. a3 {[%emt 0:08:20]} Na6 {[%emt 0:04:03]} (16... Nc6 $14) 17. Bd3 {[%emt 0:04:43]} (17. Be4 $16) 17... Nc5 $14 {[%emt 0:08:56]} 18. Rad1 {[%emt 0:02:01] next Bc2 is good for White.} Nxd3 {[%emt 0:01:04]} 19. Rxd3 {[%emt 0:00:06]} e5 {[%emt 0:03:37] Inhibits Bd4.} 20. Rd6 {[%emt 0:18:57] Black is weak on the dark squares} Be6 {[%emt 0:05:47]} 21. b3 {[%emt 0:00:23]} h6 {[%emt 0:08:23]} 22. Bc1 {[%emt 0:02:34][%cal Be3c1,Bc1b2,Bb2e5,Be5d6][%mdl 32]} Rfd8 {[%emt 0:02:07]} 23. Red1 {[%emt 0:02:12]} Rxd6 {[%emt 0:00:30]} 24. Rxd6 {[%emt 0:00:04]} Qf5 {[%emt 0:00:58] Inhibits Qe4.} 25. Bb2 {[%emt 0:01:48][%cal Rb2e5]} Re8 {[%emt 0:07:46]} 26. Bxe5 {[%emt 0:05:18]} Bc8 {[%emt 0:03:24][%cal Rg7e5]} (26... Bxc4 $5 27. Qxc4 Bxe5 28. Nxe5 Rxe5 29. Rd8+ Kh7 $11) 27. g4 $1 {[%emt 0:00:10]} Qb1+ {[%emt 0:03:17]} 28. Qd1 $1 {[%emt 0:00:05]} Qxd1+ {[%emt 0:00:13]} 29. Rxd1 {[%emt 0:00:05]} Bf8 {[%emt 0:00:04]} 30. Bd6 {[%emt 0:08:35]} Bg7 {[%emt 0:01:23]} 31. Be5 {[%emt 0:00:36][%mdl 64] [#] Deflection} Bf8 {[%emt 0:01:40]} ({Resist} 31... Bxe5 32. Nxe5 Kg7 33. Rd5 $16) 32. Bd6 {[%emt 0:00:05]} (32. Bb2 $14) 32... Rd8 {[%emt 0:00:13]} 33. c5 {[%emt 0:00:05]} Bg7 {[%emt 0:00:18]} 34. Kg2 {[%emt 0:06:37] White is more active.} Be6 {[%emt 0:06:53]} 35. Rd3 {[%emt 0:04:34]} a6 {[%emt 0:00:15]} 36. Nd2 {[%emt 0:01:33]} f5 {[%emt 0:05:21]} 37. f3 {[%emt 0:00:21]} fxg4 {[%emt 0:00:42]} 38. fxg4 {[%emt 0:01:11]} Bd7 {[%emt 0:02:05]} 39. Nc4 {[%emt 0:00:45]} Bc6+ {[%emt 0:00:17]} 40. Kg3 {[%emt 0:00:00]} Re8 {[%emt 0:00:00]} 41. Na5 {[%emt 0:06:00]} Bh1 {[%emt 0:04:53]} 42. Kf2 {[%emt 0:08:39]} Be4 {[%emt 0:02:32]} 43. Rd1 {[%emt 0:00:14]} Bc3 {[%emt 0:00:37]} 44. b4 {[%emt 0:00:53]} Bc2 {[%emt 0:02:25] This pair of bishops is nice.} 45. Rd5 {[%emt 0:04:35]} Be4 {[%emt 0:14:38]} 46. Rd1 {[%emt 0:00:04]} Re6 {[%emt 0:00:14]} 47. Bf4 {[%emt 0:01:25]} g5 {[%emt 0:05:05]} 48. Rd8+ {[%emt 0:00:23]} Kf7 $1 {[%emt 0:00:48]} 49. Be3 {[%emt 0:00:21]} Ke7 {[%emt 0:02:02]} 50. Rc8 {[%emt 0:01:08]} Kd7 {[%emt 0:01:10]} 51. Rf8 {[%emt 0:00:37]} Rf6+ {[%emt 0:00:36]} 52. Rxf6 {[%emt 0:00:04]} Bxf6 $11 {[%emt 0:00:05][%mdl 4096] Endgame KBB-KBN} 53. Nc4 {[%emt 0:00:09]} Kc6 {[%emt 0:02:30]} 54. Nd6 {[%emt 0:00:45]} Bg6 {[%emt 0:03:35]} 55. Kf3 {[%emt 0:00:40]} Bb2 {[%emt 0:03:52]} 56. a4 {[%emt 0:01:12]} b5 {[%emt 0:00:08] [#] This costs Black the game.} (56... Bc2 $14) 57. axb5+ $1 $18 {[%emt 0:00:10]} axb5 {[%emt 0:00:05]} 58. Nf5 {[%emt 0:01:51] Hoping for Ne7+.} Bf6 {[%emt 0:06:33] Dodges Ne7+} 59. Nxh6 {[%emt 0:00:51] aiming for Ng8.} Kd5 {[%emt 0:02:34]} (59... Bc3 $142 60. Nf5 (60. Bxg5 Bxb4 61. h4 Bc2 $16) 60... Bf7 61. Nd4+ (61. Bxg5 Bxb4 62. Ke4 Bd5+ 63. Kd4 Bxc5+ 64. Ke5 Bf3 $16) 61... Kd5) 60. Nf5 {[%emt 0:00:40]} Be8 {[%emt 0:01:03]} 61. Ke2 {[%emt 0:02:05] Nd6 would be deadly.} Bd7 $2 {[%emt 0:02:24]} (61... Bc6 {is a better defense.} 62. Kd3 Ke6) 62. Kd3 {[%emt 0:00:11]} Bc8 $2 {[%emt 0:01:10]} (62... Be8 63. Bd2 Bd7) 63. Nd6 {[%emt 0:00:27]} Bd7 {[%emt 0:00:17]} 64. Ne4 {[%emt 0:00:07] Weighted Error Value: White=0.10 (very precise) /Black=0.20 (precise)} 1-0

[Event "61st Mongolian-ch Open 2023"]
[Site "Khovd"]
[Date "2023.05.30"]
[Round "11.3"]
[White "Chinguun, Sumiya"]
[Black "Enkhnar, Enkhbaatar"]
[Result "1-0"]
[ECO "B23"]
[WhiteElo "2298"]
[BlackElo "2360"]
[Annotator "TA"]
[PlyCount "69"]
[EventDate "2023.05.22"]
[EventType "tourn"]
[EventCountry "MGL"]
[SourceTitle "playchess.com"]
[Source "ChessBase"]
[SourceQuality "1"]
[TimeControl "40/5400+30:1800+30"]

{[%evp 12,69,29,20,54,9,43,0,0,-16,-26,-27,0,0,0,0,6,6,47,0,23,27,38,-55,-39,-39,-29,-229,0,0,-39,-70,-35,-261,-196,-195,-192,-208,-201,-243,-189,-293,-206,-200,-202,-197,-16,-16,-35,-23,-17,-18,172,174,670,630,654,610,1993,1810]} 1. e4 {[%emt 0:00:03]} c5 {[%emt 0:00:21]} 2. Nc3 {[%emt 0:00:06]} d6 {[%emt 0:00:44]} 3. f4 {[%emt 0:00:37]} g6 {[%emt 0:01:35]} 4. Bc4 {[%emt 0:00:07]} Bg7 {[%emt 0:00:30]} 5. Nf3 {[%emt 0:00:11]} e6 {[%emt 0:01:22]} 6. d4 {[%emt 0:07:53]} cxd4 {[%emt 0:00:33]} 7. Nxd4 {[%emt 0:00:07] Ndb5 would be deadly.} a6 {[%emt 0:00:23] Dodges Ndb5. B23: Closed Sicilian: Lines without g3.} 8. a4 {[%emt 0:01:32]} (8. O-O $5 {[%cal Rf4f5]}) 8... Qb6 {[%emt 0:03:16] [#]} 9. Nf3 $146 {[%emt 0:02:01]} ({Predecessor:} 9. Nb3 Ne7 10. Qe2 Nd7 11. Be3 Qc7 12. a5 O-O 13. O-O d5 14. exd5 exd5 15. Bd3 {1-0 Grigorov,J (2375)-Giffard,N (2405) Cannes op 18th 1997 (2)}) 9... Ne7 {[%emt 0:02:21] The position is equal.} 10. a5 {[%emt 0:01:16]} Qc7 {[%emt 0:00:32]} 11. Bd3 {[%emt 0:04:17]} Nd7 {[%emt 0:04:19]} (11... Nbc6 $5) 12. O-O {[%emt 0:00:42]} Nc5 {[%emt 0:00:50]} 13. Be3 {[%emt 0:01:01]} O-O {[%emt 0:00:45]} 14. Qe1 {[%emt 0:01:51]} Nc6 {[%emt 0:01:53]} 15. Kh1 {[%emt 0:07:03]} (15. Na4 $14) 15... Nxd3 {[%emt 0:03:58]} 16. cxd3 {[%emt 0:00:07]} Nxa5 {[%emt 0:00:51] [#]} 17. f5 {[%emt 0:10:31]} Nc6 $1 $15 {[%emt 0:00:42]} (17... exf5 $2 18. Nd5 Qc2 19. Qxa5 $18) (17... gxf5 18. exf5 Nc6 19. Qg3 $14) 18. Nh4 {[%emt 0:04:26]} Qd8 {[%emt 0:04:09]} 19. g4 $2 {[%emt 0:03:38]} (19. Qg3 $1 $11 {and White is okay.}) 19... d5 $2 {[%emt 0:01:44]} ({Black should try} 19... Nb4 $19 {White must now prevent ...Nc2.} 20. g5 exf5 21. exf5 Nc2 {[%mdl 64] Deflection, Double Attack}) 20. Bc5 {[%emt 0:01:38]} Re8 $36 {[%emt 0:01:01][%mdl 2048] Threatens to win with ...exf5. Black is pushing.} 21. Qf2 {[%emt 0:00:16] And now fxg6 would win.} exf5 {[%emt 0:09:21]} (21... Ne5 $5 {[%cal Re5d3]} 22. fxg6 fxg6 $15) 22. Nxd5 $2 {[%emt 0:01:54]} ({White should play} 22. gxf5 $15 Ne5 23. Rad1 (23. Nxd5 $2 Nxd3 {[%mdl 64] Discovered Attack, Double Attack} 24. Qe3 Nxc5 $19) (23. fxg6 fxg6 24. Bb6 Qd7 $15)) 22... Be6 {[%emt 0:00:58]} ({And not} 22... fxe4 23. Qxf7+ (23. dxe4 Be6 $17) (23. Nb6 $2 Rb8 $19) 23... Kh8 24. Nc7 $17) 23. Nb6 {[%emt 0:02:17][%cal Rg4f5]} fxe4 {[%emt 0:02:51]} ({Not} 23... Qxd3 24. Nxa8 Qxe4+ 25. Qg2 Rxa8 26. gxf5 Qxg2+ 27. Kxg2 Bd5+ 28. Kh3 $17) 24. Nxa8 {[%emt 0:00:20][%cal Od3e4]} Qxa8 {[%emt 0:00:12]} 25. dxe4 {[%emt 0:00:09][%cal Oh4f5]} Ne5 {[%emt 0:00:57]} 26. h3 {[%emt 0:00:41] [#]} (26. Bd4 $142) 26... b6 $1 {[%emt 0:00:54][%mdl 576] Discovered Attack} 27. Bxb6 {[%emt 0:00:57]} Qxe4+ {[%emt 0:00:15]} 28. Ng2 {[%emt 0:00:17] White is weak on the light squares} Nc4 $2 {[%emt 0:01:35]} (28... Bc4 $19 29. Ba5 Bxf1 30. Rxf1 Qd5) 29. Rae1 $11 {[%emt 0:00:53]} Qd5 {[%emt 0:02:41]} 30. Rd1 $1 {[%emt 0:03:23]} Qb5 {[%emt 0:02:51]} 31. Bd4 {[%emt 0:00:15][%cal Bb6d4,Bd4g7,Bg7c3][%mdl 32]} Qb3 $2 {[%emt 0:03:24]} (31... Ne5 $11 {and Black has nothing to worry.}) 32. Bxg7 $18 {[%emt 0:00:46]} Qxh3+ {[%emt 0:01:04]} (32... Kxg7 33. Qf6+ Kg8) 33. Kg1 {[%emt 0:00:06] Hoping for Bc3. White is clearly winning.} Qxg4 {[%emt 0:16:21]} 34. Bc3 {[%emt 0:00:22] Threatening mate with Qf6.} Bf5 {[%emt 0:00:53]} 35. Rd4 {[%emt 0:00:13] Artfully played by Chinguun.   Weighted Error Value: White=0.33/Black=0.58} 1-0

[Event "61st Mongolian-ch Open 2023"]
[Site "Khovd"]
[Date "2023.05.30"]
[Round "11.5"]
[White "Munguntuul, Batkhuyag"]
[Black "Amartuvshin, Ganzorig"]
[Result "1/2-1/2"]
[ECO "B46"]
[WhiteElo "2408"]
[BlackElo "2407"]
[Annotator "TA"]
[PlyCount "106"]
[EventDate "2023.05.22"]
[EventType "tourn"]
[EventCountry "MGL"]
[SourceTitle "playchess.com"]
[Source "ChessBase"]
[SourceQuality "1"]
[TimeControl "40/5400+30:1800+30"]

{[%evp 21,106,16,29,31,30,3,60,27,54,29,42,19,19,19,19,20,147,106,103,102,123,116,134,0,0,-10,-8,-7,43,44,52,0,0,0,17,0,0,0,0,0,0,-4,0,0,0,0,0,0,10,0,12,7,18,0,8,0,0,0,77,95,61,58,76,0,0,0,0,0,0,0,0,0,0,0,0,0,0,0,0,0,0,0,8,0,0,0,8]} 1. e4 {[%emt 0:00:01]} c5 {[%emt 0:00:04]} 2. Nf3 {[%emt 0:00:04]} e6 {[%emt 0:00:06]} 3. d4 {[%emt 0:00:04]} cxd4 {[%emt 0:00:04]} 4. Nxd4 {[%emt 0:00:05]} Nc6 {[%emt 0:00:04]} 5. Nc3 {[%emt 0:00:24]} a6 {[%emt 0:00:05]} 6. Nxc6 {[%emt 0:01:43]} bxc6 {[%emt 0:00:15]} 7. Bd3 {[%emt 0:00:03]} d5 {[%emt 0:00:08]} 8. Qe2 {[%emt 0:00:24]} Nf6 {[%emt 0:04:31]} 9. O-O {[%emt 0:00:15]} Be7 {[%emt 0:00:20]} 10. b3 {[%emt 0:01:15]} O-O {[%emt 0:00:32]} 11. Bb2 {[%emt 0:00:03]} Bb7 {[%emt 0:00:31]} 12. Rae1 {[%emt 0:06:31] B46: Sicilian: Taimanov: 5 Nc3 a6.} Qc7 {[%emt 0:00:59]} 13. f4 {[%emt 0:03:39] [#]} d4 $146 {[%emt 0:05:41]} (13... Rfe8 $11) ({Predecessor:} 13... Rfe8 14. Rf3 c5 15. Kh1 g6 16. e5 Nd7 17. Rh3 Bf8 18. Nd1 c4 19. bxc4 dxc4 20. Bxc4 Nc5 21. Ne3 h5 {½-½ Pichot,A (2544)-Bosiocic,M (2591) Wch Rapid Doha 2016 (12)}) 14. Nb1 {[%emt 0:06:23] White is slightly better.} (14. Na4 $5 {[%cal Rb2d4]}) 14... c5 {[%emt 0:00:14]} 15. Nd2 {[%emt 0:01:00]} Nd7 {[%emt 0:02:53]} 16. Nc4 {[%emt 0:08:05]} Nb6 {[%emt 0:03:39]} 17. Bc1 {[%emt 0:05:50]} Nxc4 {[%emt 0:05:54]} 18. Bxc4 {[%emt 0:01:01]} Qd8 {[%emt 0:01:17]} (18... Bh4 $11) 19. Rf3 {[%emt 0:03:05]} g6 {[%emt 0:02:11] [#]} 20. Rh3 $1 {[%emt 0:04:25][%cal Of4f5]} Kg7 {[%emt 0:03:34] [#]} 21. f5 $1 {[%emt 0:14:05][%mdl 512]} Bg5 {[%emt 0:00:40] Inhibits Qd2.} 22. fxe6 {[%emt 0:00:15] White is more active.} (22. Qg4 $16 h6 23. Rg3 (23. fxe6 fxe6 24. Rg3 Qf6 $14)) 22... fxe6 $11 {[%emt 0:01:11]} 23. Bxe6 {[%emt 0:00:48]} Bxc1 $1 {[%emt 0:00:43]} 24. Rxc1 {[%emt 0:00:03]} Qe7 {[%emt 0:18:49] [#]} (24... Qg5 $11 25. Rf1 Qe7 26. Rxf8 Rxf8) 25. Qd2 $1 $14 {[%emt 0:08:30] Strongly threatening Qh6+.} h5 {[%emt 0:01:25]} 26. Bd5 {[%emt 0:11:12]} (26. Bc4 $1 $14) 26... Bxd5 $11 {[%emt 0:00:42]} 27. exd5 {[%emt 0:00:01]} Rf5 {[%emt 0:00:22]} 28. c3 {[%emt 0:04:43]} Rxd5 {[%emt 0:07:29]} 29. cxd4 {[%emt 0:00:22]} cxd4 {[%emt 0:00:20]} (29... Rad8 {is more complex.} 30. Re1 Qf6 31. Rf3 Qxd4+ 32. Qf2 a5) 30. Rd3 {[%emt 0:01:13]} Qd6 {[%emt 0:00:40]} 31. Rd1 {[%emt 0:01:59][%cal Rd3d4]} Rd8 {[%emt 0:00:06]} (31... Re8 {is interesting.} 32. Rf1 Re4 33. Rdf3 Qe7) 32. b4 {[%emt 0:01:07]} Qb6 {[%emt 0:01:11]} 33. h3 {[%emt 0:00:50]} R8d7 {[%emt 0:00:51]} 34. Kh1 {[%emt 0:00:09]} g5 {[%emt 0:00:18]} 35. a3 {[%emt 0:02:07]} (35. Rf1 {looks sharper.} Qd6 36. Rdf3 g4 37. Rf4) 35... Qe6 {[%emt 0:00:44]} 36. Re1 {[%emt 0:00:29]} (36. Rf1 {feels hotter.} Qe5 37. Qf2 Qe7 38. Qf3) 36... Qg6 {[%emt 0:00:23]} 37. Rd1 {[%emt 0:01:41]} g4 {[%emt 0:00:32]} 38. Qf4 {[%emt 0:00:45]} Rf7 {[%emt 0:01:57]} 39. Qg3 {[%emt 0:00:15]} Qf6 {[%emt 0:02:11]} (39... gxh3 $11 40. Qxg6+ Kxg6) 40. hxg4 $16 {[%emt 0:00:00]} h4 {[%emt 0:00:00]} 41. Qe1 {[%emt 0:19:07]} Re7 {[%emt 0:04:56][%cal Bf7e7,Be7e4,Be4g4,Bg4g3][%mdl 32] Against Qe4} 42. Qf1 {[%emt 0:01:18]} ({Better is} 42. Qd2 $16) 42... Qxf1+ $11 {[%emt 0:01:23] The position is equal.} 43. Rxf1 {[%emt 0:00:01][%mdl 4096] Endgame KRR-KRR} Re4 {[%emt 0:06:20]} 44. a4 {[%emt 0:06:03]} Rxg4 {[%emt 0:00:32]} 45. Rb1 {[%emt 0:00:01]} Rg3 {[%emt 0:05:15]} 46. Rd2 {[%emt 0:03:28]} Kf6 {[%emt 0:04:31]} 47. b5 {[%emt 0:00:16]} axb5 {[%emt 0:00:05]} 48. axb5 {[%emt 0:00:05]} Ke5 {[%emt 0:00:14]} 49. b6 {[%emt 0:00:48]} Rg8 {[%emt 0:00:17]} 50. b7 {[%emt 0:04:01]} Rb8 {[%emt 0:00:10]} 51. Re1+ {[%emt 0:00:07]} Kd6 {[%emt 0:01:13]} 52. Red1 {[%emt 0:01:30]} Ke5 {[%emt 0:00:22]} 53. Re1+ {[%emt 0:00:11]} Kd6 {[%emt 0:01:37] Weighted Error Value: White=0.17 (very precise) /Black=0.14 (very precise)} 1/2-1/2